fUSD/lending_fUSD_20240715
["ID","MTS","AMOUNT","RATE_DAILY","PERIOD"]
[332244708,1721070110218,241.14,0.00018849,30]
[332244709,1721070112449,7562.05811425,5e-05,2]
[332244711,1721070116938,290.66575246,5e-05,2]
[332244712,1721070119800,459.03935982,5e-05,2]
[332244713,1721070139048,164.42527991,6.061e-05,2]
[332244714,1721070144609,960.89206454,6.061e-05,2]
[332244715,1721070148271,155.13135445,6.061e-05,2]
[332244716,1721070149625,890.13904212,6.061e-05,2]
[332244717,1721070154910,2501.55203252,6.061e-05,2]
[332244718,1721070169594,158.50904991,6.061e-05,2]
[332244719,1721070170241,264.77984904,6.061e-05,2]
[332244721,1721070184281,3787.38361081,6.061e-05,2]
[332244723,1721070189613,2380.94559053,6.061e-05,2]
[332244725,1721070190618,380.66328159,6.061e-05,2]
[332244726,1721070193367,19649.39918542,7.347e-05,2]
[332244728,1721070197163,774.1594225,7.347e-05,2]
[332244730,1721070213345,438.35174148,7.347e-05,2]
[332244732,1721070225728,2223.2959686,7.347e-05,2]
[332244733,1721070234896,299.9787386,0.0001,2]
[332244734,1721070241250,411.02446308,0.0001,2]
[332244735,1721070246365,13548.89966844,7.347e-05,2]
[332244736,1721070246391,949.53535666,7.347e-05,2]
[332244737,1721070264922,1631.50135618,8.905e-05,2]
[332244742,1721070291575,1929.80746129,8.905e-05,2]
[332244761,1721070574181,162.79,9.756e-05,2]
[332244770,1721070632128,-811.11,0.00010325,2]
[332244771,1721070632138,-369.74005427,0.00010491,2]
[332244772,1721070632151,-738.70194573,0.00010491,2]
[332244773,1721070632161,-300.0,0.00010793,2]
[332244774,1721070632170,-150.0,0.00010793,2]
[332244775,1721070632179,-299.91989156,0.00010794,2]
[332244776,1721070632188,-183.62608674,0.00010794,2]
[332244777,1721070632198,-307.18748065,0.00010794,2]
[332244778,1721070632207,-1288.59799477,0.00010794,2]
[332244779,1721070632216,-292.57856873,0.00010794,2]
[332244780,1721070632225,-180.07785768,0.00010794,2]
[332244781,1721070632234,-155.27560506,0.00010794,2]
[332244782,1721070632243,-155.50386965,0.00010794,2]
[332244783,1721070632254,-82.38873763,0.00010794,2]
[332244784,1721070632263,-155.74816455,0.00010794,2]
[332244785,1721070632272,-155.0,0.00010794,2]
[332244786,1721070632281,-305.87724342,0.00010794,2]
[332244787,1721070632290,-382.12258582,0.00010794,2]
[332244788,1721070632299,-171.36880447,0.00010794,2]
[332244789,1721070632308,-53.03180946,0.00010794,2]
[332244791,1721070632319,-359.16532702,0.00010794,2]
[332244794,1721070632336,-422.80670013,0.00010794,2]
[332244796,1721070632345,-192.10623542,0.00010794,2]
[332244798,1721070632355,-304.78291063,0.00010794,2]
[332244800,1721070632364,-378.07593941,0.00010794,2]
[332244802,1721070632373,-175.41039267,0.00010794,2]
[332244804,1721070632383,-398.08119137,0.00010794,2]
[332244806,1721070632391,-302.06561788,0.00010794,2]
[332244808,1721070632401,-155.0,0.00010794,2]
[332244810,1721070632410,-364.69674518,0.00010794,2]
[332244812,1721070632419,-1254.63523304,0.00010794,2]
[332244814,1721070632428,-294.14505741,0.00010794,2]
[332244816,1721070632437,-328.89716632,0.00010794,2]
[332244818,1721070632446,-402.51774828,0.00010794,2]
[332244820,1721070632456,-531.02179191,0.00010794,2]
[332244822,1721070632466,-155.0,0.00010794,2]
[332244824,1721070632475,-544.74834431,0.00010794,2]
[332244826,1721070632484,-9252.14906276,0.00011097,2]
[332244828,1721070632493,-206.48733416,0.00011098,2]
[332244830,1721070632502,-625.85278711,0.00011098,2]
[332244832,1721070632511,-298.01060598,0.00011098,2]
[332244834,1721070632521,-394.55556356,0.00011098,2]
[332244836,1721070632530,-1500.0,0.00011098,2]
[332244838,1721070632540,-155.0,0.00011098,2]
[332244840,1721070632549,-186.17473656,0.00011098,2]
[332244842,1721070632557,-367.25582466,0.00011098,2]
[332244844,1721070632567,-155.69648093,0.00011098,2]
[332244846,1721070632576,-411.94049548,0.00011098,2]
[332244848,1721070632585,-6412.72995804,0.00011098,2]
[332244850,1721070632594,-155.06185702,0.00011098,2]
[332244852,1721070632603,-958.16486127,0.00011098,2]
[332244854,1721070632612,-250.61758327,0.00011098,2]
[332244856,1721070632621,-155.0,0.00011098,2]
[332244858,1721070632631,-3030.02587802,0.00011098,2]
[332244859,1721070632640,-627.78159693,0.00011098,2]
[332244861,1721070632649,-308.67273697,0.00011098,2]
[332244863,1721070632658,-155.0,0.00011098,2]
[332244865,1721070632668,-3077.57558188,0.00011098,2]
[332244866,1721070632677,-10530.36397608,0.00011197,2]
[332244867,1721070632686,-155.0,0.00011197,2]
[332244868,1721070632695,-155.0,0.00011197,2]
[332244869,1721070632704,-12389.35113535,0.00011199,2]
[332244870,1721070632713,-155.0,0.00011199,2]
[332244871,1721070632723,-400.0,0.00011199,2]
[332244872,1721070632733,-420.0,0.00011863,2]
[332244873,1721070632742,-666.28,0.00012197,2]
[332244874,1721070632751,-250.0,0.0001225,2]
[332244875,1721070632760,-250.0,0.00012252,2]
[332244876,1721070632769,-197.27,0.00012256,2]
[332244877,1721070632778,-155.0,0.00012273,2]
[332244878,1721070632790,-480.0,0.00012403,2]
[332244879,1721070632800,-160.0,0.00012567,2]
[332244880,1721070632809,-811.11,0.00012588,2]
[332244881,1721070632818,-204.19,0.00012698,2]
[332244882,1721070632827,-520.0,0.00012759,2]
[332244883,1721070632836,-10425.7633,0.000128,2]
[332244884,1721070632845,-5590.18,0.00012893,2]
[332244885,1721070632854,-1389.1,0.00012893,2]
[332244886,1721070632863,-1250.0,0.00013,2]
[332244887,1721070632872,-587.0,0.00013038,2]
[332244888,1721070632881,-268.378,0.0001305,2]
[332244889,1721070632890,-549.0,0.0001305,2]
[332244890,1721070632899,-414.741,0.0001305,2]
[332244891,1721070632908,-656.19422223,0.00013128,2]
[332244892,1721070632917,-8379.75683196,0.0001325,2]
[332244893,1721070632926,-361.90514,0.00013396,2]
[332244894,1721070632935,-5167.124526,0.00013396,2]
[332244895,1721070632944,-4702.25653026,0.00013396,2]
[332244896,1721070632956,-11.46383374,0.00013396,2]
[332244897,1721070632965,-266.800636,0.00013396,2]
[332244898,1721070632974,-495.142079,0.00013396,2]
[332244899,1721070632983,-157.32655556,0.00013396,2]
[332244900,1721070632995,-184.83396544,0.00013396,2]
[332244901,1721070633004,-244.548812,0.00013396,2]
[332244902,1721070633013,-361.90514,0.00013396,2]
[332244903,1721070633022,-203.448561,0.00013396,2]
[332244904,1721070633031,-166.325145,0.00013396,2]
[332244905,1721070633041,-151.34341,0.00013396,2]
[332244906,1721070633050,-155.0,0.00013472,2]
[332244907,1721070633060,-1721.28138656,0.00013516,2]
[332244935,1721070640080,-411.29895715,0.00013472,2]
[332244936,1721070640092,-3027.95925375,0.00013472,2]
[332244937,1721070640152,-426.20748742,0.00013472,2]
[332244938,1721070640162,-270.1693017,0.00013516,2]
[332244939,1721070640176,-212.65450348,0.00013516,2]
[332244940,1721070640185,-230.58249725,0.00013516,2]
[332244941,1721070640196,-12.14269795,0.00013516,2]
[332244942,1721070640205,-235.94587051,0.00013516,2]
[332244943,1721070640215,-2891.955283,0.00013543,2]
[332244944,1721070640226,-3338.2998664,0.00013543,2]
[332244945,1721070640235,-909.16572934,0.0001355,2]
[332244946,1721070640277,-1733.74027066,0.0001355,2]
[332244947,1721070640286,-156.213,0.0001355,2]
[332244948,1721070640297,-361.90514,0.00013563,2]
[332244949,1721070640306,-5167.124526,0.00013563,2]
[332244950,1721070640316,-4713.720364,0.00013563,2]
[332244951,1721070640325,-266.800636,0.00013563,2]
[332244952,1721070640335,-495.142079,0.00013563,2]
[332244953,1721070640343,-342.160521,0.00013563,2]
[332244954,1721070640353,-244.548812,0.00013563,2]
[332244955,1721070640362,-361.90514,0.00013563,2]
[332244956,1721070640372,-1087.8401,0.00013599,2]
[332244957,1721070640381,-1033.7973,0.00013599,2]
[332244958,1721070640390,-18596.46401984,0.00013599,2]
[332244959,1721070640402,-2483.48218016,0.00013599,2]
[332244960,1721070640411,-194.41801419,0.00013609,2]
[332244961,1721070640421,-500.0,0.00013698,2]
[332244962,1721070640431,-500.0,0.00013698,2]
[332244963,1721070640440,-500.0,0.00013698,2]
[332244964,1721070640449,-500.0,0.00013698,2]
[332244965,1721070640459,-500.0,0.00013698,2]
[332244966,1721070640468,-500.0,0.00013698,2]
[332244967,1721070640477,-500.0,0.00013698,2]
[332244968,1721070640487,-500.0,0.00013698,2]
[332244969,1721070640496,-500.0,0.00013698,2]
[332244970,1721070640505,-500.0,0.00013698,2]
[332244971,1721070640514,-500.0,0.00013698,2]
[332244973,1721070640523,-500.0,0.00013698,2]
[332244974,1721070640532,-500.0,0.00013698,2]
[332244975,1721070640543,-500.0,0.00013698,2]
[332244976,1721070640552,-185.52123315,0.00013698,2]
[332244977,1721070640561,-500.0,0.00013698,2]
[332244978,1721070640571,-500.0,0.00013698,2]
[332244979,1721070640580,-500.0,0.00013698,2]
[332244980,1721070640590,-500.0,0.00013698,2]
[332244981,1721070640599,-291.91,0.00013698,2]
[332244982,1721070640608,-500.0,0.00013698,2]
[332244983,1721070640618,-500.0,0.00013698,2]
[332244984,1721070640627,-1017.99,0.00013698,2]
[332244985,1721070640636,-500.0,0.00013698,2]
[332244986,1721070640645,-500.0,0.00013698,2]
[332244987,1721070640654,-500.0,0.00013698,2]
[332244988,1721070640663,-500.0,0.00013698,2]
[332244989,1721070640673,-500.0,0.00013698,2]
[332244990,1721070640682,-500.0,0.00013698,2]
[332244991,1721070640691,-500.0,0.00013698,2]
[332244992,1721070640700,-742.76,0.00013698,2]
[332244993,1721070640709,-500.0,0.00013698,2]
[332244994,1721070640718,-500.0,0.00013698,2]
[332244995,1721070640727,-500.0,0.00013698,2]
[332244996,1721070640736,-500.0,0.00013698,2]
[332244997,1721070640746,-500.0,0.00013698,2]
[332244998,1721070640754,-207.20557696,0.00013698,2]
[332244999,1721070640763,-500.0,0.00013698,2]
[332245000,1721070640773,-500.0,0.00013698,2]
[332245001,1721070640782,-500.0,0.00013698,2]
[332245002,1721070640791,-500.0,0.00013698,2]
[332245003,1721070640800,-500.0,0.00013698,2]
[332245004,1721070640809,-500.0,0.00013698,2]
[332245005,1721070640820,-500.0,0.00013698,2]
[332245006,1721070640829,-563.42,0.00013698,2]
[332245007,1721070640838,-533.65,0.00013698,2]
[332245008,1721070640847,-500.0,0.00013698,2]
[332245009,1721070640856,-500.0,0.00013698,2]
[332245010,1721070640865,-500.0,0.00013698,2]
[332245011,1721070640875,-500.0,0.00013698,2]
[332245012,1721070640884,-500.0,0.00013698,2]
[332245013,1721070640893,-500.0,0.00013698,2]
[332245014,1721070640902,-500.0,0.00013698,2]
[332245015,1721070640911,-500.0,0.00013698,2]
[332245016,1721070640921,-500.0,0.00013698,2]
[332245017,1721070640931,-194.81,0.00013699,2]
[332245018,1721070640940,-362.21,0.00013699,2]
[332245019,1721070640950,-553.62317681,0.00013699,2]
[332245020,1721070640959,-2000.0,0.00013699,2]
[332245021,1721070640968,-200.0,0.00013699,2]
[332245022,1721070640977,-2000.0,0.00013699,2]
[332245023,1721070640987,-200.0,0.00013699,2]
[332245024,1721070640996,-3000.0,0.00013699,2]
[332245025,1721070641006,-5572.18773184,0.00013699,2]
[332245026,1721070641015,-361.90514,0.00013731,2]
[332245027,1721070641025,-5167.124526,0.00013731,2]
[332245028,1721070641034,-4713.720364,0.00013731,2]
[332245029,1721070641044,-266.800636,0.00013731,2]
[332245030,1721070641053,-495.142079,0.00013731,2]
[332245031,1721070641064,-342.160521,0.00013731,2]
[332245032,1721070641076,-244.548812,0.00013731,2]
[332245033,1721070641085,-361.90514,0.00013731,2]
[332245034,1721070641095,-151.34341,0.00013731,2]
[332245035,1721070641104,-155.0,0.00013736,2]
[332245036,1721070641115,-158.64365863,0.00013736,2]
[332245037,1721070641124,-519.32016709,0.00013736,2]
[332245038,1721070641133,-500.0,0.00013753,2]
[332245039,1721070641143,-500.0,0.00013753,2]
[332245040,1721070641152,-500.0,0.00013753,2]
[332245041,1721070641161,-500.0,0.00013753,2]
[332245042,1721070641170,-500.0,0.00013753,2]
[332245043,1721070641180,-500.0,0.00013753,2]
[332245044,1721070641189,-500.0,0.00013753,2]
[332245045,1721070641198,-500.0,0.00013753,2]
[332245046,1721070641207,-500.0,0.00013753,2]
[332245047,1721070641217,-500.0,0.00013753,2]
[332245048,1721070641226,-500.0,0.00013753,2]
[332245049,1721070641235,-500.0,0.00013753,2]
[332245050,1721070641244,-500.0,0.00013753,2]
[332245051,1721070641254,-500.0,0.00013753,2]
[332245052,1721070641263,-406.79277566,0.00013753,2]
[332245053,1721070641275,-93.20722434,0.00013753,2]
[332245054,1721070641284,-500.0,0.00013753,2]
[332245055,1721070641294,-500.0,0.00013753,2]
[332245056,1721070641303,-500.0,0.00013753,2]
[332245057,1721070641312,-500.0,0.00013753,2]
[332245058,1721070641322,-500.0,0.00013753,2]
[332245059,1721070641332,-1017.99,0.00013753,2]
[332245060,1721070641341,-500.0,0.00013753,2]
[332245061,1721070641350,-500.0,0.00013753,2]
[332245062,1721070641359,-500.0,0.00013753,2]
[332245063,1721070641368,-86.96912218,0.00013753,2]
[332245064,1721070641379,-413.03087782,0.00013753,2]
[332245065,1721070641388,-500.0,0.00013753,2]
[332245066,1721070641398,-500.0,0.00013753,2]
[332245067,1721070641408,-742.76,0.00013753,2]
[332245068,1721070641417,-500.0,0.00013753,2]
[332245069,1721070641426,-136.63858607,0.00013753,2]
[332245070,1721070641437,-363.36141393,0.00013753,2]
[332245071,1721070641446,-500.0,0.00013753,2]
[332245072,1721070641455,-369.7081232,0.00013753,2]
[332245073,1721070641469,-130.2918768,0.00013753,2]
[332245074,1721070641478,-500.0,0.00013753,2]
[332245075,1721070641487,-500.0,0.00013753,2]
[332245076,1721070641496,-500.0,0.00013753,2]
[332245077,1721070641505,-500.0,0.00013753,2]
[332245078,1721070641514,-500.0,0.00013753,2]
[332245079,1721070641524,-298.33,0.00013753,2]
[332245080,1721070641533,-252.96860864,0.00013753,2]
[332245088,1721070643091,-276.03969957,0.0001325,2]
[332245091,1721070643148,-569.73,0.0001325,2]
[332245092,1721070643202,-9154.23030043,0.0001325,2]
[332245093,1721070643212,-500.0,0.00013698,2]
[332245094,1721070643222,-247.03139136,0.00013753,2]
[332245095,1721070643232,-500.0,0.00013753,2]
[332245096,1721070643241,-500.0,0.00013753,2]
[332245097,1721070643250,-500.0,0.00013753,2]
[332245098,1721070643259,-500.0,0.00013753,2]
[332245099,1721070643269,-500.0,0.00013753,2]
[332245100,1721070643278,-616.33184579,0.00013759,2]
[332245101,1721070643288,-155.22310351,0.00013759,2]
[332245102,1721070643300,-1499.51,0.00013807,2]
[332245103,1721070643310,-1134.53,0.00013807,2]
[332245104,1721070643319,-606.17794464,0.00013807,2]
[332245105,1721070643328,-500.0,0.00013807,2]
[332245106,1721070643338,-500.0,0.00013807,2]
[332245107,1721070643347,-534.31,0.00013807,2]
[332245108,1721070643356,-457.53,0.00013807,2]
[332245109,1721070643366,-500.0,0.00013808,2]
[332245110,1721070643375,-500.0,0.00013808,2]
[332245111,1721070643384,-500.0,0.00013808,2]
[332245112,1721070643394,-500.0,0.00013808,2]
[332245113,1721070643403,-500.0,0.00013808,2]
[332245114,1721070643412,-500.0,0.00013808,2]
[332245115,1721070643421,-500.0,0.00013808,2]
[332245117,1721070643430,-500.0,0.00013808,2]
[332245118,1721070643440,-500.0,0.00013808,2]
[332245119,1721070643450,-500.0,0.00013808,2]
[332245120,1721070643459,-500.0,0.00013808,2]
[332245121,1721070643468,-500.0,0.00013808,2]
[332245122,1721070643478,-500.0,0.00013808,2]
[332245123,1721070643487,-500.0,0.00013808,2]
[332245124,1721070643496,-500.0,0.00013808,2]
[332245125,1721070643506,-500.0,0.00013808,2]
[332245126,1721070643515,-500.0,0.00013808,2]
[332245127,1721070643524,-500.0,0.00013808,2]
[332245128,1721070643533,-500.0,0.00013808,2]
[332245129,1721070643544,-1017.99,0.00013808,2]
[332245130,1721070643553,-500.0,0.00013808,2]
[332245131,1721070643563,-500.0,0.00013808,2]
[332245132,1721070643572,-500.0,0.00013808,2]
[332245133,1721070643581,-500.0,0.00013808,2]
[332245134,1721070643591,-500.0,0.00013808,2]
[332245135,1721070643600,-500.0,0.00013808,2]
[332245136,1721070643610,-742.76,0.00013808,2]
[332245137,1721070643620,-500.0,0.00013808,2]
[332245138,1721070643629,-500.0,0.00013808,2]
[332245139,1721070643639,-500.0,0.00013808,2]
[332245140,1721070643648,-500.0,0.00013808,2]
[332245141,1721070643657,-500.0,0.00013808,2]
[332245142,1721070643666,-500.0,0.00013808,2]
[332245144,1721070643675,-500.0,0.00013808,2]
[332245145,1721070643684,-500.0,0.00013808,2]
[332245146,1721070643693,-500.0,0.00013808,2]
[332245147,1721070643703,-500.0,0.00013808,2]
[332245148,1721070643712,-500.0,0.00013808,2]
[332245149,1721070643722,-500.0,0.00013808,2]
[332245150,1721070643731,-500.0,0.00013808,2]
[332245151,1721070643740,-426.49183253,0.00013817,2]
[332245152,1721070643749,-2000.0,0.00013836,2]
[332245153,1721070643759,-200.0,0.00013836,2]
[332245154,1721070643768,-200.0,0.00013836,2]
[332245155,1721070643777,-426.4918325,0.00013838,2]
[332245156,1721070643786,-527.80162773,0.00013849,2]
[332245157,1721070643798,-203.92024674,0.00013849,2]
[332245158,1721070643807,-346.93460697,0.00013849,2]
[332245159,1721070643816,-643.746616,0.00013849,2]
[332245160,1721070643826,-156.0,0.00013849,2]
[332245161,1721070643836,-647.26467047,0.00013849,2]
[332245162,1721070643846,-426.4918325,0.00013859,2]
[332245163,1721070643856,-1499.51,0.00013862,2]
[332245164,1721070643865,-1134.53,0.00013862,2]
[332245165,1721070643875,-500.0,0.00013862,2]
[332245166,1721070643884,-500.0,0.00013862,2]
[332245167,1721070643893,-534.31,0.00013862,2]
[332245168,1721070643902,-500.0,0.00013863,2]
[332245169,1721070643912,-500.0,0.00013863,2]
[332245170,1721070643921,-500.0,0.00013863,2]
[332245171,1721070643931,-500.0,0.00013863,2]
[332245172,1721070643940,-500.0,0.00013863,2]
[332245173,1721070643949,-500.0,0.00013863,2]
[332245174,1721070643959,-500.0,0.00013863,2]
[332245175,1721070643968,-500.0,0.00013863,2]
[332245176,1721070643978,-500.0,0.00013863,2]
[332245177,1721070643987,-500.0,0.00013863,2]
[332245178,1721070643997,-500.0,0.00013863,2]
[332245179,1721070644007,-500.0,0.00013863,2]
[332245180,1721070644016,-500.0,0.00013863,2]
[332245181,1721070644025,-500.0,0.00013863,2]
[332245182,1721070644035,-500.0,0.00013863,2]
[332245183,1721070644046,-565.98,0.00013863,2]
[332245184,1721070644055,-500.0,0.00013863,2]
[332245185,1721070644067,-1017.99,0.00013863,2]
[332245186,1721070644078,-500.0,0.00013863,2]
[332245187,1721070644087,-500.0,0.00013863,2]
[332245188,1721070644097,-500.0,0.00013863,2]
[332245189,1721070644107,-500.0,0.00013863,2]
[332245190,1721070644117,-500.0,0.00013863,2]
[332245191,1721070644127,-181.1,0.00013863,2]
[332245192,1721070644138,-742.76,0.00013863,2]
[332245193,1721070644147,-492.2646839,0.00013863,2]
[332245194,1721070644157,-500.0,0.00013863,2]
[332245195,1721070644166,-500.0,0.00013863,2]
[332245196,1721070644175,-500.0,0.00013863,2]
[332245197,1721070644185,-500.0,0.00013863,2]
[332245198,1721070644194,-500.0,0.00013863,2]
[332245199,1721070644204,-500.0,0.00013863,2]
[332245200,1721070644213,-500.0,0.00013863,2]
[332245201,1721070644222,-335.05,0.00013863,2]
[332245202,1721070644232,-500.0,0.00013863,2]
[332245203,1721070644242,-500.0,0.00013863,2]
[332245204,1721070644251,-500.0,0.00013863,2]
[332245205,1721070644261,-500.0,0.00013863,2]
[332245206,1721070644270,-10483.84235,0.00013875,3]
[332245207,1721070644279,-426.4918325,0.00013879,2]
[332245208,1721070644288,-5177.39146936,0.0001388,2]
[332245209,1721070644300,-500.0,0.00013887,2]
[332245210,1721070644309,-500.0,0.00013888,2]
[332245211,1721070644319,-10483.84235,0.00013888,3]
[332245212,1721070644328,-731.29876733,0.00013889,2]
[332245213,1721070644337,-260.75599469,0.00013889,2]
[332245214,1721070644346,-254.53325388,0.00013889,2]
[332245215,1721070644356,-180.97667478,0.00013889,2]
[332245216,1721070644365,-155.0,0.00013889,2]
[332245217,1721070644374,-155.31483576,0.00013889,2]
[332245218,1721070644384,-685.81454762,0.00013889,2]
[332245219,1721070644394,-300.4835236,0.00013889,2]
[332245220,1721070644403,-361.90514,0.00013898,2]
[332245221,1721070644413,-5167.124526,0.00013898,2]
[332245222,1721070644422,-4713.720364,0.00013898,2]
[332245223,1721070644431,-266.800636,0.00013898,2]
[332245224,1721070644440,-495.142079,0.00013898,2]
[332245225,1721070644449,-342.160521,0.00013898,2]
[332245226,1721070644459,-244.548812,0.00013898,2]
[332245227,1721070644468,-361.90514,0.00013898,2]
[332245228,1721070644477,-266.43740936,0.00013899,2]
[332245229,1721070644486,-407.14562287,0.00013899,2]
[332245230,1721070644495,-218.4212033,0.00013899,2]
[332245231,1721070644505,-431.57658303,0.00013899,2]
[332245232,1721070644514,-155.0,0.00013899,2]
[332245233,1721070644523,-155.0,0.00013899,2]
[332245234,1721070644533,-324.8460323,0.000139,2]
[332245235,1721070644542,-1000.0,0.000139,2]
[332245236,1721070644553,-426.4918325,0.000139,2]
[332245237,1721070644562,-367.02635876,0.000139,2]
[332245238,1721070644571,-10483.84235,0.00013907,3]
[332245239,1721070644580,-500.0,0.00013917,2]
[332245240,1721070644589,-500.0,0.00013917,2]
[332245241,1721070644599,-500.0,0.00013917,2]
[332245242,1721070644608,-500.0,0.00013917,2]
[332245243,1721070644617,-500.0,0.00013917,2]
[332245244,1721070644626,-500.0,0.00013917,2]
[332245245,1721070644635,-500.0,0.00013917,2]
[332245246,1721070644645,-329.94,0.00013917,2]
[332245247,1721070644654,-500.0,0.00013917,2]
[332245248,1721070644663,-500.0,0.00013917,2]
[332245249,1721070644672,-500.0,0.00013917,2]
[332245250,1721070644682,-500.0,0.00013917,2]
[332245251,1721070644691,-500.0,0.00013917,2]
[332245252,1721070644699,-500.0,0.00013917,2]
[332245253,1721070644709,-500.0,0.00013917,2]
[332245254,1721070644718,-500.0,0.00013917,2]
[332245255,1721070644727,-1017.99,0.00013917,2]
[332245256,1721070644736,-500.0,0.00013917,2]
[332245257,1721070644745,-500.0,0.00013917,2]
[332245258,1721070644755,-335.47,0.00013917,2]
[332245259,1721070644764,-500.0,0.00013917,2]
[332245260,1721070644773,-500.0,0.00013917,2]
[332245261,1721070644783,-742.76,0.00013917,2]
[332245262,1721070644792,-500.0,0.00013917,2]
[332245263,1721070644802,-500.0,0.00013917,2]
[332245264,1721070644990,-500.0,0.00013917,2]
[332245265,1721070645001,-625.33491526,0.00013917,2]
[332245266,1721070645010,-500.0,0.00013917,2]
[332245267,1721070645020,-1499.51,0.00013917,2]
[332245268,1721070645029,-500.0,0.00013917,2]
[332245269,1721070645038,-500.0,0.00013917,2]
[332245270,1721070645048,-1134.53,0.00013917,2]
[332245271,1721070645058,-500.0,0.00013917,2]
[332245272,1721070645070,-500.0,0.00013917,2]
[332245273,1721070645080,-500.0,0.00013917,2]
[332245274,1721070645089,-534.31,0.00013917,2]
[332245275,1721070645098,-500.0,0.00013917,2]
[332245276,1721070645107,-500.0,0.00013917,2]
[332245277,1721070645118,-500.0,0.00013917,2]
[332245278,1721070645127,-10483.84235,0.00013932,3]
[332245279,1721070645137,-809.0,0.0001395,2]
[332245280,1721070645148,-450.647,0.0001395,2]
[332245281,1721070645157,-685.42,0.0001395,2]
[332245282,1721070645167,-10483.84235,0.00013952,3]
[332245283,1721070645176,-480.0,0.00013953,2]
[332245284,1721070645186,-41935.3693998,0.0001396,3]
[332245285,1721070645195,-41935.3693998,0.0001396,3]
[332245286,1721070645204,-10483.84235,0.00013962,3]
[332245287,1721070645214,-15992.1693415,0.00013962,3]
[332245288,1721070645223,-6165.88006638,0.00013969,3]
[332245289,1721070645237,-21277.02201902,0.00013969,3]
[332245290,1721070645248,-641.5247125,0.00013969,3]
[332245291,1721070645259,-333.95349907,0.00013969,3]
[332245292,1721070645278,-854.36157171,0.00013969,3]
[332245293,1721070645288,-4526.756931,0.00013969,3]
[332245294,1721070645301,-1757.24990833,0.00013969,3]
[332245295,1721070645313,-361.6920653,0.00013969,3]
[332245296,1721070645334,-500.0,0.00013808,2]
[332245297,1721070645343,-16500.77097649,0.00013969,3]
[332245298,1721070645353,-11188.64259628,0.00013969,3]
[332245299,1721070646206,-155.0,0.00011197,2]
[332245300,1721070646216,-733.56675052,0.0001325,2]
[332245301,1721070646226,-500.0,0.00013863,2]
[332245302,1721070646235,-500.0,0.00013917,2]
[332245303,1721070646245,-36787.86542842,0.00013969,3]
[332245304,1721070646254,-10483.84235,0.0001397,3]
[332245305,1721070646263,-15992.1693415,0.0001397,3]
[332245306,1721070646273,-500.0,0.00013972,2]
[332245307,1721070646282,-500.0,0.00013972,2]
[332245308,1721070646292,-624.94,0.00013972,2]
[332245309,1721070646302,-500.0,0.00013972,2]
[332245310,1721070646313,-551.95289952,0.00013972,2]
[332245311,1721070646322,-500.0,0.00013972,2]
[332245312,1721070646332,-565.36,0.00013972,2]
[332245313,1721070646342,-500.0,0.00013972,2]
[332245314,1721070646351,-500.0,0.00013972,2]
[332245315,1721070646361,-1017.99,0.00013972,2]
[332245316,1721070646370,-500.0,0.00013972,2]
[332245317,1721070646379,-500.0,0.00013972,2]
[332245318,1721070646389,-500.0,0.00013972,2]
[332245319,1721070646398,-742.76,0.00013972,2]
[332245320,1721070646407,-500.0,0.00013972,2]
[332245321,1721070646416,-500.0,0.00013972,2]